[Event "44th Chess Olympiad Open 2022"]
[Site "Chennai"]
[Date "2022.07.31"]
[Round "3.11"]
[White "Nihal Sarin"]
[Black "Bogner, Sebastian"]
[Result "1-0"]
[WhiteElo "2651"]
[BlackElo "2545"]
[Annotator "TA"]
[PlyCount "53"]
[EventDate "2022.??.??"]
[TimeControl "60"]

{[%evp 9,53,27,13,0,7,6,4,9,0,12,8,12,9,-4,-2,-2,0,0,0,0,0,0,0,0,8,6,58,64,62,
54,49,50,60,4,10,45,40,22,74,78,155,164,902,888,842,739]} 1. d4 {[%emt 0:00:39]
} Nf6 {[%emt 0:00:06]} 2. c4 {[%emt 0:00:37]} e6 {[%emt 0:00:06]} 3. Nf3 {
[%emt 0:00:05]} d5 {[%emt 0:00:05]} 4. g3 {[%emt 0:00:05]} Be7 {[%emt 0:00:46]}
5. Bg2 {[%emt 0:00:08]} O-O {[%emt 0:00:07]} 6. Qd3 {[%emt 0:00:03] E06:
Closed Catalan: Early deviations.} Nbd7 {[%emt 0:07:44]} 7. O-O {[%emt 0:02:20]
} b6 {[%emt 0:07:11] was the old line (7...c6).} 8. cxd5 {[%emt 0:01:07] The
position is equal.} exd5 {[%emt 0:02:18]} 9. Nc3 {[%emt 0:01:33]} Bb7 {[%emt 0:
00:00]} 10. Bf4 {[%emt 0:00:36]} Nh5 {[%emt 0:04:35] [#]} 11. Rad1 $146 {
[%emt 0:05:47]} ({Predecessor:} 11. Bd2 Nhf6 12. Rac1 Re8 13. Rfd1 c5 14. Bf4
Ne4 15. Ne5 cxd4 16. Nxe4 Nxe5 17. Qxd4 {½-½ (24) Oparin,G (2613)-Van
Foreest,L (2515) Skopje 2019}) 11... Nxf4 {[%emt 0:01:26]} 12. gxf4 {[%emt 0:
00:00]} Re8 {[%emt 0:09:27]} 13. Ne5 {[%emt 0:08:30]} Nf6 {[%emt 0:00:12]} 14.
e3 {[%emt 0:03:02]} c6 {[%emt 0:10:47]} 15. Kh1 {[%emt 0:07:35]} Bd6 {[%emt 0:
00:00]} 16. Bf3 {[%emt 0:04:11]} c5 {[%emt 0:10:58]} 17. Rg1 {[%emt 0:16:35]
[%cal Yf1g1,Yg1g4,Yg4g5]} Qe7 {[%emt 0:03:12]} (17... cxd4 $11 18. Qxd4 g6) 18.
Ng4 $14 {[%emt 0:01:11]} Nxg4 {[%emt 0:18:21]} 19. Rxg4 {[%emt 0:00:00]} Rad8 {
[%emt 0:01:25]} 20. Rdg1 {[%emt 0:17:22]} g6 {[%emt 0:00:10]} 21. Bxd5 {
[%emt 0:11:30]} (21. Rg5 $14) 21... Bxd5+ $11 {[%emt 0:13:55]} 22. Nxd5 {
[%emt 0:00:33]} Qe6 {[%emt 0:00:02]} 23. Rg5 {[%emt 0:01:11]} cxd4 {[%emt 0:00:
00]} (23... Kf8 $1 $11 24. Nc3 cxd4 25. Qxd4 f6) 24. e4 $16 {[%emt 0:01:05]
[%cal Ye3e4,Ye4f5,Yf5g6] Threatens to win with f5. White is more active.} (24.
exd4 Kf8 25. Nc3 Bxf4 $17) 24... f5 {[%emt 0:01:33] [#]} (24... Qxe4+ $2 25.
Qxe4 Rxe4 26. Nf6+ Kh8 27. Nxe4 $18) ({Better is} 24... Kh8) 25. f3 $1 {
[%emt 0:06:23][%cal Re4f5]} ({Stronger than} 25. Re1 Bb8 26. Rd1 fxe4 27. Qxd4
Bxf4 $17) 25... Rf8 {[%emt 0:00:00] [#]} (25... fxe4 26. fxe4 Bxf4 27. Nxf4
Qxe4+ 28. Qxe4 Rxe4) 26. exf5 $1 $18 {[%emt 0:03:07]} Qxd5 {[%emt 0:01:40]} 27.
fxg6 {[%emt 0:00:06] Weighted Error Value: White=0.06 (flawless) / Black=0.17 
(very precise)} 1-0

[Event "44th Chess Olympiad Open 2022"]
[Site "Chennai"]
[Date "2022.07.31"]
[Round "3.11"]
[White "Sadhwani, Raunak"]
[Black "Baenziger, Fabian"]
[Result "1-0"]
[WhiteElo "2611"]
[BlackElo "2451"]
[Annotator "RC"]
[PlyCount "75"]
[EventDate "2022.??.??"]
[TimeControl "60"]

1. e4 {[%emt 0:00:05]} e5 {[%emt 0:00:23]} 2. Nf3 {[%emt 0:00:07]} Nc6 {
[%emt 0:00:29]} 3. Bc4 {[%emt 0:00:22]} Nf6 {[%emt 0:00:42]} 4. d3 {[%emt 0:00:
00]} Bc5 {[%emt 0:00:32]} 5. a4 {[%emt 0:00:05]} a5 {[%emt 0:01:11]} 6. Be3 {
[%emt 0:00:21]} Bxe3 {[%emt 0:02:06]} 7. fxe3 {[%emt 0:00:15]} d5 {[%emt 0:00:
00]} 8. exd5 {[%emt 0:00:06]} Nxd5 {[%emt 0:00:04]} 9. Qd2 {[%emt 0:00:08]} f6
{[%emt 0:03:49]} 10. Qf2 {[%emt 0:00:29]} Be6 {[%emt 0:09:08]} 11. e4 {[%emt 0:
00:00]} Nf4 {[%emt 0:00:12]} 12. g3 {[%emt 0:06:21]} Nh3 {[%emt 0:03:13]} 13.
Qc5 {[%emt 0:00:23]} Qe7 {[%emt 0:10:36]} 14. Qxe7+ {[%emt 0:02:01]} Kxe7 {
[%emt 0:00:10]} 15. Bxe6 {[%emt 0:01:48]} Kxe6 {[%emt 0:00:05]} 16. c3 {
[%emt 0:01:13]} Rhf8 {[%emt 0:19:18]} 17. Ke2 {[%emt 0:06:48]} f5 {[%emt 0:00:
00]} 18. exf5+ {[%emt 0:02:58]} Rxf5 {[%emt 0:00:06]} 19. Nbd2 {[%emt 0:00:09]}
Raf8 {[%emt 0:02:09]} 20. Rhf1 {[%emt 0:00:17]} g5 {[%emt 0:06:44]} 21. Ne4 {
[%emt 0:00:56]} g4 {[%emt 0:00:52]} 22. Nfd2 {[%emt 0:05:37]} b6 {[%emt 0:00:
00]} 23. Rxf5 {[%emt 0:01:59]} Rxf5 {[%emt 0:00:06]} 24. Nc4 {[%emt 0:00:06]}
h5 {[%emt 0:02:27]} 25. Ne3 {[%emt 0:03:56]} Rf8 {[%emt 0:00:57]} 26. Rc1 {
[%emt 0:00:12]} Ne7 {[%emt 0:07:53]} 27. b4 {[%emt 0:03:34]} axb4 {[%emt 0:00:
00]} 28. cxb4 {[%emt 0:01:00]} Ra8 {[%emt 0:00:03]} 29. Rxc7 {[%emt 0:01:46]}
Rxa4 {[%emt 0:00:35]} 30. Rb7 {[%emt 0:00:10]} Ra2+ {[%emt 0:06:12]} 31. Ke1 {
[%emt 0:00:10]} Ng1 {[%emt 0:07:26]} 32. Rxb6+ {[%emt 0:00:47]} Kf7 {[%emt 0:
00:00]} 33. Kd1 {[%emt 0:02:40]} Rxh2 {[%emt 0:02:39]} 34. b5 {[%emt 0:00:49]}
Re2 {[%emt 0:00:54]} 35. Rf6+ {[%emt 0:01:18]} Kg7 {[%emt 0:00:04]} 36. Re6 {
[%emt 0:04:45]} Rxe3 {[%emt 0:01:12]} 37. Rxe7+ {[%emt 0:00:02]} Kf8 {[%emt 0:
00:00]} 38. Rd7 {[%emt 0:00:05]} 1-0

[Event "44th Chess Olympiad Open 2022"]
[Site "Chennai"]
[Date "2022.07.31"]
[Round "3.11"]
[White "Georgiadis, Nico"]
[Black "Gukesh D"]
[Result "0-1"]
[WhiteElo "2578"]
[BlackElo "2684"]
[Annotator "TA"]
[PlyCount "74"]
[EventDate "2022.??.??"]
[TimeControl "60"]

{[%evp 9,74,-4,32,19,23,18,19,18,13,17,18,16,23,12,18,12,10,-6,-11,-7,0,0,2,0,
0,-28,-34,-106,-100,-89,-93,-122,-125,-134,-140,-133,-139,-131,-127,-119,-129,
-113,-44,-137,-98,-157,-151,-270,-276,-280,-269,-279,-276,-274,-272,-315,-235,
-383,-350,-1205,-1452,-1320,-1392,-5631,-6720,-5714,-5630]} 1. e4 {[%emt 0:00:
00]} c5 {[%emt 0:01:16]} 2. Nf3 {[%emt 0:00:07][%cal Yg1f3,Yf3d4,Yd4b5,Yb5c3,
Yc3e2]} Nc6 {[%emt 0:01:13]} 3. d4 {[%emt 0:00:14]} cxd4 {[%emt 0:00:00]} 4.
Nxd4 {[%emt 0:00:05]} e6 {[%emt 0:03:10]} 5. a3 {[%emt 0:00:09] [#]} e5 $146 {
[%emt 0:04:19]} ({Predecessor:} 5... Nf6 6. Nc3 Qc7 7. Be3 a6 8. Be2 b5 9. O-O
Bb7 10. f3 Be7 11. Qd2 O-O 12. Rad1 d6 13. f4 Na5 14. e5 dxe5 15. fxe5 Nd5 16.
Nxd5 Bxd5 17. b3 Rad8 18. Bf4 Be4 19. b4 {0-1 (61) Valle Maytin,L (2284)
-Jakubowski,K (2497) Chess.com INT 2021}) 6. Nb5 {[%emt 0:04:49] B44: Sicilian:
Taimanov: 5 Nb5.} d6 $1 {[%emt 0:00:32]} 7. c4 {[%emt 0:00:07]} Nf6 {[%emt 0:
07:27]} 8. Bd3 {[%emt 0:04:59] The position is equal.} g6 {[%emt 0:00:00]} 9.
O-O {[%emt 0:01:55]} Bg7 {[%emt 0:00:36]} 10. Bg5 {[%emt 0:17:15]} O-O {
[%emt 0:07:44]} 11. N5c3 {[%emt 0:03:38]} h6 {[%emt 0:02:48]} 12. Bxf6 {
[%emt 0:14:39]} Bxf6 {[%emt 0:00:26]} 13. Ne2 {[%emt 0:04:26]} Bg7 {[%emt 0:00:
00]} 14. Nbc3 {[%emt 0:00:28]} f5 {[%emt 0:09:09]} 15. exf5 {[%emt 0:03:21]}
gxf5 {[%emt 0:00:12]} 16. Bc2 {[%emt 0:01:10]} Be6 {[%emt 0:05:46] Inhibits
Qd5.} 17. Nd5 {[%emt 0:00:58]} Rc8 {[%emt 0:00:34]} 18. Qd2 {[%emt 0:10:07]} (
18. b3 $15) 18... Na5 $1 $17 {[%emt 0:02:05]} 19. b3 {[%emt 0:11:47]} b5 $1 {
[%emt 0:00:13][%cal Yb7b5,Yb5c4]} 20. Rad1 {[%emt 0:04:49]} bxc4 {[%emt 0:06:
20]} 21. b4 {[%emt 0:07:15]} Nc6 {[%emt 0:01:21]} 22. Rfe1 {[%emt 0:00:00]} Qd7
$1 {[%emt 0:07:38]} 23. Ba4 {[%emt 0:06:52] [#]} Qf7 $1 {[%emt 0:00:00]} 24.
Bxc6 {[%emt 0:00:05]} Rxc6 {[%emt 0:00:04]} 25. Nec3 {[%emt 0:00:00]} Kh8 {
[%emt 0:04:02]} (25... e4 $17 26. Nf4 Be5) 26. f4 {[%emt 0:01:15]} ({Better is
} 26. Qe3 $15) 26... a5 {[%emt 0:04:03]} 27. Qe3 {[%emt 0:00:51]} (27. b5 $142
Rcc8 28. Nb6) 27... e4 {[%emt 0:01:42] ...Bxd5 is the strong threat.} 28. Rd2 {
[%emt 0:01:05]} (28. g4 $17) 28... Bxd5 $19 {[%emt 0:00:59]} 29. Rxd5 {[%emt 0:
00:05]} axb4 {[%emt 0:00:09]} 30. axb4 {[%emt 0:00:04] [#]} Ra6 $1 {[%emt 0:00:
03] White must now prevent ...Ra3.} 31. Rc1 {[%emt 0:00:33]} Rb8 {[%emt 0:04:
59]} 32. g4 {[%emt 0:01:30]} fxg4 {[%emt 0:07:11]} 33. Qxe4 {[%emt 0:00:10]} (
33. b5 $142 Ra3 34. Rxd6) 33... Rxb4 {[%emt 0:01:08] Strongly threatening ...
Bxc3.} 34. Rf5 $2 {[%emt 0:01:08]} (34. Rd2) 34... Qa7+ {[%emt 0:00:50] Black
is clearly winning.} 35. Kf1 {[%emt 0:00:42]} Ra1 {[%emt 0:00:32]} 36. Ne2 {
[%emt 0:00:33]} Rxc1+ {[%emt 0:02:01]} 37. Nxc1 {[%emt 0:00:03]} Qa1 {[%emt 0:
00:30] Weighted Error Value: White=0.60/Black=0.06 (flawless)} 0-1

[Event "44th Chess Olympiad Open 2022"]
[Site "Chennai"]
[Date "2022.07.31"]
[Round "3.11"]
[White "Pelletier, Yannick"]
[Black "Praggnanandhaa R"]
[Result "0-1"]
[WhiteElo "2551"]
[BlackElo "2648"]
[Annotator "RC"]
[PlyCount "134"]
[EventDate "2022.??.??"]
[TimeControl "60"]

1. d4 {[%emt 0:00:06]} Nf6 {[%emt 0:00:46]} 2. c4 {[%emt 0:00:28]} e6 {[%emt 0:
00:00]} 3. Nf3 {[%emt 0:00:12]} d5 {[%emt 0:00:07]} 4. Nc3 {[%emt 0:00:22]}
dxc4 {[%emt 0:00:55]} 5. e4 {[%emt 0:01:15]} b5 {[%emt 0:00:10]} 6. e5 {
[%emt 0:00:16]} Nd5 {[%emt 0:00:06]} 7. Nxb5 {[%emt 0:00:32]} Nb6 {[%emt 0:00:
00]} 8. Be2 {[%emt 0:00:51]} Nc6 {[%emt 0:00:19]} 9. O-O {[%emt 0:00:41]} Be7 {
[%emt 0:00:30]} 10. Qd2 {[%emt 0:03:38]} Qd7 {[%emt 0:00:51]} 11. Nc3 {[%emt 0:
00:00]} Bb7 {[%emt 0:02:10]} 12. Rd1 {[%emt 0:00:59]} Nb4 {[%emt 0:00:36]} 13.
Qf4 {[%emt 0:06:52]} f5 {[%emt 0:01:40]} 14. exf6 {[%emt 0:02:58]} gxf6 {
[%emt 0:00:31]} 15. Qh6 {[%emt 0:04:02]} O-O-O {[%emt 0:05:39]} 16. Bf4 {
[%emt 0:00:17]} Nd3 {[%emt 0:06:08]} 17. Bg3 {[%emt 0:03:43]} Nxb2 {[%emt 0:00:
00]} 18. Rdc1 {[%emt 0:03:05]} N2a4 {[%emt 0:09:05]} 19. Rab1 {[%emt 0:08:28]}
Nxc3 {[%emt 0:18:51]} 20. Rxc3 {[%emt 0:00:39]} Qc6 {[%emt 0:05:07]} 21. Bf1 {
[%emt 0:19:34]} Rd7 {[%emt 0:04:29]} 22. Qc1 {[%emt 0:10:19]} Ba6 {[%emt 0:00:
00]} 23. a4 {[%emt 0:02:29]} Rd5 {[%emt 0:09:34]} 24. Rc2 {[%emt 0:08:51]} Rhd8
{[%emt 0:10:42]} 25. Nd2 {[%emt 0:03:51]} Rxd4 {[%emt 0:03:13]} 26. a5 {
[%emt 0:00:04]} Na4 {[%emt 0:06:14]} 27. Nxc4 {[%emt 0:01:38]} Bxc4 {[%emt 0:
00:00]} 28. Rxc4 {[%emt 0:04:07]} Rxc4 {[%emt 0:01:33]} 29. Bxc4 {[%emt 0:00:
00]} Nc5 {[%emt 0:00:30]} 30. Be2 {[%emt 0:03:19]} Bd6 {[%emt 0:03:47]} 31. Qb2
{[%emt 0:02:18]} a6 {[%emt 0:02:47]} 32. Qxf6 {[%emt 0:04:57]} Rf8 {[%emt 0:00:
00]} 33. Qb2 {[%emt 0:02:16]} Na4 {[%emt 0:01:15]} 34. Qb3 {[%emt 0:01:20]} Nc5
{[%emt 0:00:56]} 35. Qe3 {[%emt 0:00:42]} Kd7 {[%emt 0:01:17]} 36. Bf3 {
[%emt 0:00:58]} Qa4 {[%emt 0:00:14]} 37. Qc3 {[%emt 0:00:14]} Rf7 {[%emt 0:00:
00]} 38. Ra1 {[%emt 0:01:28]} Qb3 {[%emt 0:00:47]} 39. Qd4 {[%emt 0:00:36]} Qd3
{[%emt 0:00:51]} 40. Qh8 {[%emt 0:00:30]} Ne4 {[%emt 0:00:33]} 41. Bxd6 {
[%emt 0:17:56]} Nxd6 {[%emt 0:06:22]} 42. Qa8 {[%emt 0:04:32]} Qc3 {[%emt 0:00:
00]} 43. Rd1 {[%emt 0:01:35]} Qxa5 {[%emt 0:01:23]} 44. h3 {[%emt 0:02:58]} Ke7
{[%emt 0:09:42]} 45. Rc1 {[%emt 0:01:31]} Kd7 {[%emt 0:05:43]} 46. Bc6+ {
[%emt 0:02:30]} Ke7 {[%emt 0:00:04]} 47. Bf3 {[%emt 0:00:03]} Kd7 {[%emt 0:00:
00]} 48. Qc6+ {[%emt 0:00:25]} Kd8 {[%emt 0:00:07]} 49. Bg4 {[%emt 0:00:36]}
Re7 {[%emt 0:03:31]} 50. Rb1 {[%emt 0:00:32]} Re8 {[%emt 0:05:10]} 51. Rb8+ {
[%emt 0:01:23]} Ke7 {[%emt 0:00:27]} 52. Rxe8+ {[%emt 0:00:07]} Nxe8 {[%emt 0:
00:00]} 53. Qxe6+ {[%emt 0:00:10]} Kf8 {[%emt 0:00:01]} 54. Qh6+ {[%emt 0:00:
00]} Ng7 {[%emt 0:00:07]} 55. Qf6+ {[%emt 0:00:55]} Kg8 {[%emt 0:00:02]} 56.
Bf3 {[%emt 0:00:42]} Qb5 {[%emt 0:02:21]} 57. Qe7 {[%emt 0:01:13]} Qb1+ {
[%emt 0:00:40]} 58. Kh2 {[%emt 0:00:03]} Qb8 {[%emt 0:00:07]} 59. Bd5+ {
[%emt 0:00:51]} Kh8 {[%emt 0:00:01]} 60. Qe5 {[%emt 0:00:08]} a5 {[%emt 0:00:
00]} 61. Bf7 {[%emt 0:00:33]} Qb6 {[%emt 0:00:55]} 62. f4 {[%emt 0:00:46]} Qd6
{[%emt 0:00:32]} 63. Qe4 {[%emt 0:00:28]} c6 {[%emt 0:00:22]} 64. Bb3 {[%emt 0:
00:00]} Qb4 {[%emt 0:00:53]} 65. Qe3 {[%emt 0:00:32]} a4 {[%emt 0:00:20]} 66.
Bc2 {[%emt 0:00:27]} a3 {[%emt 0:00:32]} 67. Qd3 {[%emt 0:00:38]} Qxf4+ {
[%emt 0:00:20]} 0-1

[Event "44th Chess Olympiad Open 2022"]
[Site "Chennai"]
[Date "2022.07.31"]
[Round "3.12"]
[White "Sargissian, Gabriel"]
[Black "Amin, Bassem"]
[Result "1/2-1/2"]
[WhiteElo "2698"]
[BlackElo "2680"]
[Annotator "TA"]
[PlyCount "88"]
[EventDate "2022.??.??"]
[TimeControl "60"]

{[%evp 13,88,29,52,21,12,15,20,18,21,19,14,24,10,0,25,16,13,22,14,10,26,22,14,
18,24,16,24,20,39,23,56,0,29,27,29,14,29,8,8,0,0,0,0,0,0,0,0,0,0,0,0,0,0,0,0,0,
0,0,0,0,0,0,0,0,0,0,0,0,0,0,0,0,0,0,0,0,0]} 1. d4 {[%emt 0:00:08]} Nf6 {
[%emt 0:01:00]} 2. c4 {[%emt 0:00:09]} g6 {[%emt 0:00:06]} 3. Nc3 {[%emt 0:00:
00]} Bg7 {[%emt 0:00:06]} 4. e4 {[%emt 0:00:10]} d6 {[%emt 0:00:18]} 5. Nf3 {
[%emt 0:00:09]} O-O {[%emt 0:00:07]} 6. Be2 {[%emt 0:00:17]} e5 {[%emt 0:00:06]
} 7. O-O {[%emt 0:00:33]} Bg4 {[%emt 0:00:21]} 8. dxe5 {[%emt 0:04:14] E94:
King's Indian: Classical: 6 Be2 e5 7 0-0: Various Black 7th moves.} (8. d5 {
with more complications.} a5 9. h3 Bxf3 10. Bxf3 Nfd7 11. Qc2) 8... Bxf3 {
[%emt 0:00:15]} 9. exf6 {[%emt 0:00:30]} Bxe2 {[%emt 0:00:07]} 10. Qxe2 {
[%emt 0:00:36]} Qxf6 {[%emt 0:00:08]} 11. Nd5 {[%emt 0:00:28]} Qd8 {[%emt 0:00:
00] [#]} 12. Be3 $146 {[%emt 0:00:56]} ({Predecessor:} 12. Bf4 Nd7 13. Rad1 Re8
14. Rfe1 a5 15. Qd2 Nc5 16. f3 c6 17. Nc3 Be5 18. b3 {1-0 (33) Thybo,J (2590)
-Tutisani,N (2442) Terme Catez 2022}) 12... c6 {[%emt 0:07:44]} 13. Nc3 {
[%emt 0:03:20]} Qe7 {[%emt 0:18:00]} (13... Bxc3 $5 14. bxc3 Qe7 $11) 14. Rad1
{[%emt 0:07:30]} Bxc3 {[%emt 0:04:36]} 15. bxc3 {[%emt 0:00:06]} Nd7 {[%emt 0:
00:00]} 16. Bf4 {[%emt 0:08:48]} Rfe8 {[%emt 0:08:02]} 17. f3 {[%emt 0:04:02]}
Ne5 {[%emt 0:00:28]} 18. Rd4 {[%emt 0:00:43]} Rad8 {[%emt 0:03:45]} 19. Rfd1 {
[%emt 0:05:04]} b6 {[%emt 0:00:49]} 20. a4 {[%emt 0:05:55]} f6 {[%emt 0:02:52]}
21. Qd2 {[%emt 0:10:21]} Qf7 {[%emt 0:07:35]} 22. Qe2 {[%emt 0:08:43]} (22.
Bxe5 $14 fxe5 23. Rxd6 Rxd6 24. Qxd6) 22... Qe6 {[%emt 0:04:18]} 23. a5 {
[%emt 0:02:07]} bxa5 {[%emt 0:02:14]} 24. Qa2 {[%emt 0:01:33]} Rd7 {[%emt 0:00:
00]} 25. Bxe5 {[%emt 0:04:32]} fxe5 {[%emt 0:04:18] The position is equal.} ({
Much less strong is} 25... Qxe5 26. c5+ Kg7 27. Qa3 $16 (27. Qxa5 Rde7 $14) (
27. cxd6 Qc5 $14)) 26. R4d3 {[%emt 0:05:10]} Rb8 {[%emt 0:06:57]} 27. Qa4 {
[%emt 0:00:42]} c5 {[%emt 0:02:51]} 28. Rd5 {[%emt 0:03:08]} Rb6 {[%emt 0:00:
00]} 29. Qxa5 {[%emt 0:00:06]} Rdb7 {[%emt 0:01:31]} 30. Qa4 {[%emt 0:00:55]}
Kf7 {[%emt 0:01:10]} 31. R5d2 {[%emt 0:02:50]} Ke7 {[%emt 0:00:47]} 32. Ra2 {
[%emt 0:06:35]} Qf7 {[%emt 0:01:36]} 33. Re2 {[%emt 0:01:42]} Qe8 {[%emt 0:00:
00]} 34. Qa1 {[%emt 0:01:58]} Qf7 {[%emt 0:00:17]} 35. Ra2 {[%emt 0:02:41]}
Qxc4 {[%emt 0:01:15]} 36. Rxa7 {[%emt 0:00:07]} Qe2 {[%emt 0:00:09]} 37. Rxb7+
{[%emt 0:01:39]} Rxb7 $11 {[%emt 0:00:01] Endgame KQR-KQR} 38. Re1 {[%emt 0:00:
20]} Qd2 {[%emt 0:00:50] [#] ( -> ...Rb2)} 39. Rd1 {[%emt 0:00:45]} Qc2 {
[%emt 0:01:28] Hoping for ...Rb2.} 40. Kh1 {[%emt 0:05:12]} Kd7 {[%emt 0:00:00]
} 41. h3 {[%emt 0:11:02]} Rb2 {[%emt 0:04:42][%csl Gb2][%cal Rc2g2]} 42. Qa7+ {
[%emt 0:00:26]} Ke6 {[%emt 0:00:23][%csl Gb2][%cal Rc2g2] [#]} 43. Rg1 {
[%emt 0:00:10] Chess con chili.} Rb1 {[%emt 0:00:12]} 44. Qxh7 {[%emt 0:03:17]}
Rxg1+ {[%emt 0:00:14] Weighted Error Value: White=0.04 (flawless) /Black=0.04 
(flawless)} 1/2-1/2

[Event "44th Chess Olympiad Open 2022"]
[Site "Chennai"]
[Date "2022.07.31"]
[Round "3.12"]
[White "Petrosyan, Manuel"]
[Black "Fawzy, Adham"]
[Result "1/2-1/2"]
[WhiteElo "2610"]
[BlackElo "2471"]
[Annotator "RC"]
[PlyCount "155"]
[EventDate "2022.??.??"]
[TimeControl "60"]

1. d4 {[%emt 0:01:48]} Nf6 {[%emt 0:00:08]} 2. c4 {[%emt 0:00:18]} g6 {[%emt 0:
00:00]} 3. Nc3 {[%emt 0:00:37]} d5 {[%emt 0:00:08]} 4. cxd5 {[%emt 0:01:10]}
Nxd5 {[%emt 0:00:03]} 5. e4 {[%emt 0:00:51]} Nxc3 {[%emt 0:00:05]} 6. bxc3 {
[%emt 0:00:05]} Bg7 {[%emt 0:00:14]} 7. Bc4 {[%emt 0:00:47]} c5 {[%emt 0:00:58]
} 8. Ne2 {[%emt 0:00:12]} Nc6 {[%emt 0:00:40]} 9. Be3 {[%emt 0:01:59]} O-O {
[%emt 0:04:25]} 10. O-O {[%emt 0:00:21]} Bg4 {[%emt 0:00:03]} 11. f3 {[%emt 0:
00:00]} Na5 {[%emt 0:00:03]} 12. Bd3 {[%emt 0:01:25]} cxd4 {[%emt 0:00:24]} 13.
cxd4 {[%emt 0:00:16]} Be6 {[%emt 0:00:03]} 14. Rc1 {[%emt 0:11:24]} Bxa2 {
[%emt 0:03:53]} 15. Qa4 {[%emt 0:01:42]} Be6 {[%emt 0:00:03]} 16. d5 {[%emt 0:
00:00]} Bd7 {[%emt 0:00:24]} 17. Qb4 {[%emt 0:07:01]} b5 {[%emt 0:00:06]} 18.
Nd4 {[%emt 0:09:44]} Nc4 {[%emt 0:00:55]} 19. Bxc4 {[%emt 0:01:08]} a5 {
[%emt 0:00:20]} 20. Qa3 {[%emt 0:01:02]} bxc4 {[%emt 0:00:03]} 21. Rxc4 {
[%emt 0:00:34]} a4 {[%emt 0:00:01]} 22. Rfc1 {[%emt 0:16:44]} Rb8 {[%emt 0:00:
00]} 23. Qc5 {[%emt 0:10:59]} Rc8 {[%emt 0:04:47]} 24. Qb4 {[%emt 0:02:25]}
Rxc4 {[%emt 0:13:37]} 25. Rxc4 {[%emt 0:00:05]} Qb8 {[%emt 0:03:25]} 26. Qxe7 {
[%emt 0:07:35]} Qb1+ {[%emt 0:16:13]} 27. Kf2 {[%emt 0:00:04]} Qa2+ {[%emt 0:
00:00]} 28. Rc2 {[%emt 0:00:11]} Qb1 {[%emt 0:00:02]} 29. Rd2 {[%emt 0:05:10]}
Qb7 {[%emt 0:00:56]} 30. Qc5 {[%emt 0:12:00]} Ra8 {[%emt 0:02:26]} 31. Nc6 {
[%emt 0:01:31]} a3 {[%emt 0:07:30]} 32. Qc4 {[%emt 0:00:04]} Qb1 {[%emt 0:00:
00]} 33. Qa2 {[%emt 0:00:56]} Qh1 {[%emt 0:02:20]} 34. Bd4 {[%emt 0:02:30]}
Bxd4+ {[%emt 0:02:53]} 35. Nxd4 {[%emt 0:00:20]} Qxh2 {[%emt 0:00:26]} 36. Qb1
{[%emt 0:00:45]} Rb8 {[%emt 0:04:25]} 37. Qa1 {[%emt 0:00:29]} Bh3 {[%emt 0:00:
00]} 38. Ke3 {[%emt 0:00:05]} Bxg2 {[%emt 0:01:33]} 39. Qxa3 {[%emt 0:00:01]}
Qg1+ {[%emt 0:09:00]} 40. Rf2 {[%emt 0:00:33]} h5 {[%emt 0:04:25]} 41. d6 {
[%emt 0:11:53]} Bh3 {[%emt 0:03:37]} 42. Qc3 {[%emt 0:04:35]} Rc8 {[%emt 0:00:
00]} 43. Qd2 {[%emt 0:04:22]} Ra8 {[%emt 0:03:56]} 44. e5 {[%emt 0:05:24]} Ra3+
{[%emt 0:04:40]} 45. Ke4 {[%emt 0:00:37]} Qb1+ {[%emt 0:00:37]} 46. Qc2 {
[%emt 0:00:28]} Qe1+ {[%emt 0:05:57]} 47. Qe2 {[%emt 0:01:04]} Qc3 {[%emt 0:00:
00]} 48. Qd2 {[%emt 0:02:15]} Qc4 {[%emt 0:00:13]} 49. Qb2 {[%emt 0:00:26]} Rc3
{[%emt 0:05:55]} 50. Rd2 {[%emt 0:00:56]} g5 {[%emt 0:01:54]} 51. Qb5 {[%emt 0:
00:00]} Qc8 {[%emt 0:01:11]} 52. Rb2 {[%emt 0:02:40]} Qa8+ {[%emt 0:02:53]} 53.
Qb7 {[%emt 0:00:02]} Qa1 {[%emt 0:01:27]} 54. d7 {[%emt 0:00:47]} Bxd7 {
[%emt 0:01:24]} 55. Qxd7 {[%emt 0:00:04]} Qxb2 {[%emt 0:00:03]} 56. Qe8+ {
[%emt 0:00:07]} Kh7 {[%emt 0:00:45]} 57. Qxf7+ {[%emt 0:00:05]} Kh8 {[%emt 0:
00:00]} 58. Qf8+ {[%emt 0:00:21]} Kh7 {[%emt 0:00:04]} 59. Qf7+ {[%emt 0:00:04]
} Kh8 {[%emt 0:00:01]} 60. Qxh5+ {[%emt 0:00:07]} Kg8 {[%emt 0:00:05]} 61.
Qxg5+ {[%emt 0:00:37]} Kh8 {[%emt 0:00:01]} 62. Qh6+ {[%emt 0:02:34]} Kg8 {
[%emt 0:00:01]} 63. Qg6+ {[%emt 0:00:05]} Kh8 {[%emt 0:00:08]} 64. Qf6+ {
[%emt 0:00:05]} Kh7 {[%emt 0:01:01]} 65. Qe7+ {[%emt 0:00:07]} Kh8 {[%emt 0:00:
00]} 66. Qd8+ {[%emt 0:00:08]} Kh7 {[%emt 0:00:06]} 67. Qd7+ {[%emt 0:00:04]}
Kh8 {[%emt 0:00:10]} 68. Qd8+ {[%emt 0:01:57]} Kh7 {[%emt 0:00:03]} 69. Qe7+ {
[%emt 0:01:04]} Kh8 {[%emt 0:00:02]} 70. e6 {[%emt 0:01:10]} Qb1+ {[%emt 0:00:
00]} 71. Ke5 {[%emt 0:00:23]} Qb8+ {[%emt 0:03:05]} 72. Kf5 {[%emt 0:00:09]}
Rc7 {[%emt 0:01:29]} 73. Qf6+ {[%emt 0:00:01]} Kg8 {[%emt 0:00:21]} 74. e7 {
[%emt 0:01:05]} Qb1+ {[%emt 0:01:03]} 75. Kg4 {[%emt 0:01:34]} Qg1+ {[%emt 0:
00:00]} 76. Kf5 {[%emt 0:00:35]} Qb1+ {[%emt 0:00:16]} 77. Kg4 {[%emt 0:00:32]}
Qg1+ {[%emt 0:00:06]} 78. Kf5 {[%emt 0:00:21]} 1/2-1/2